bitfinex/quotes_SOLUSD_20250714
["timestamp","ask_amount","ask_price","bid_price","bid_amount"]
[1752462487719,5.4428021,164.87,164.86,26.12]
[1752462488731,0.67,164.87,164.86,26.12]
[1752462488931,13.1509021,164.91,164.86,61.9128021]
[1752462489139,0.67,164.93,164.9,4.7728021]
[1752462489347,13.4393021,164.95,164.91,31.02]
[1752462489638,2.203,164.95,164.92,4.7728021]
[1752462489856,2.203,164.95,164.93,4.7728021]
[1752462489857,0.67,164.95,164.93,4.7728021]
[1752462490022,0.67,164.97,164.94,31.02]
[1752462490329,0.06,164.98,164.95,4.7728021]
[1752462490632,0.73,164.98,164.95,4.7728021]
[1752462491058,0.06,164.98,164.96,7.92326023]
[1752462491841,0.06,164.98,164.95,7.92326023]
[1752462492226,0.06,164.98,164.96,7.92326023]
[1752462492734,0.06,164.98,164.97,31.04]
[1752462493822,0.06,164.98,164.97,38.96326023]
[1752462495147,0.06,164.98,164.97,55.8179442]
[1752462495326,0.06,164.98,164.97,55.7479442]
[1752462496833,0.06,164.98,164.97,31.04]
[1752462496834,0.73,164.98,164.97,31.04]
[1752462498042,8.65326023,164.98,164.97,31.04]
[1752462498231,0.06,164.98,164.97,31.04]
[1752462500132,0.06,164.98,164.97,55.8179442]
[1752462500633,0.06,164.98,164.97,55.7479442]
[1752462504137,0.06,164.98,164.97,145.3479442]
[1752462504859,0.06,164.98,164.97,145.4179442]
[1752462505361,0.06,164.98,164.97,145.3779442]
[1752462506551,0.06,164.98,164.97,163.5279442]
[1752462509464,0.06,164.98,164.97,145.3079442]
[1752462510064,0.06,164.98,164.97,145.3779442]
[1752462510552,0.06,164.98,164.97,137.45468397]
[1752462510744,0.06,164.98,164.97,145.3079442]
[1752462511150,0.06,164.98,164.97,31.0]
[1752462511151,0.72,164.98,164.97,31.0]
[1752462511359,0.72,164.98,164.97,57.12]
[1752462515475,0.06,164.98,164.97,65.04326023]
[1752462516383,0.72,164.98,164.97,57.12]
[1752462516976,0.06,164.98,164.97,65.04326023]
[1752462517671,0.06,164.98,164.97,81.8279442]
[1752462518257,0.06,164.98,164.97,73.90468397]
[1752462518454,0.06,164.98,164.97,81.8279442]
[1752462518858,0.06,164.98,164.97,57.12]
[1752462519064,0.72,164.98,164.97,57.12]
[1752462519470,5.47392804,164.98,164.97,57.12]
[1752462521161,0.72,164.98,164.97,57.12]
[1752462521371,8.64629114,164.98,164.97,57.12]
[1752462522971,0.72,164.98,164.97,57.12]
[1752462523179,8.64629114,164.98,164.97,57.12]
[1752462525782,0.72,164.98,164.97,57.12]
[1752462526676,0.06,164.98,164.97,81.83097511]
[1752462526987,0.06,164.98,164.97,57.12]
[1752462526988,0.72,164.98,164.97,57.12]
[1752462527163,0.06,164.98,164.97,57.12]
[1752462527481,0.06,164.98,164.97,65.04629114]
[1752462527704,0.72,164.98,164.97,57.12]
[1752462528060,8.64629114,164.98,164.97,57.12]
[1752462530795,0.72,164.98,164.97,57.12]
[1752462531664,0.06,164.98,164.97,57.12]
[1752462531889,0.72,164.98,164.97,57.12]
[1752462534470,8.64629114,164.98,164.97,57.12]
[1752462535283,0.72,164.98,164.97,57.12]
[1752462537675,8.64629114,164.98,164.97,57.12]
[1752462540995,0.06,164.98,164.97,57.12]
[1752462541583,0.06,164.98,164.97,65.04629114]
[1752462542186,8.66629114,164.98,164.93,0.03]
[1752462542523,0.68,164.97,164.94,31.34]
[1752462542811,7.92629114,164.95,164.94,31.34]
[1752462543108,0.68,164.95,164.94,31.34]
[1752462543607,1.6808,164.98,164.94,31.34]
[1752462543797,5.43748179,164.97,164.94,31.34]
[1752462543986,4.75748179,164.96,164.94,31.34]
[1752462544190,5.43748179,164.96,164.94,31.34]
[1752462545219,2.3608,164.98,164.94,31.34]
[1752462545514,0.06,164.98,164.94,31.41]
[1752462545699,0.06,164.98,164.96,4.75748179]
[1752462545897,0.06,164.98,164.97,31.34]
[1752462546885,0.06,164.98,164.97,36.09748179]
[1752462547091,0.06,164.98,164.97,62.23748179]
[1752462547711,0.06,164.98,164.97,57.48]
[1752462549613,0.06,164.98,164.97,62.23748179]
[1752462549785,0.06,164.98,164.97,62.30748179]
[1752462550607,0.06,164.98,164.97,57.55]
[1752462550912,0.06,164.98,164.97,62.23748179]
[1752462551987,5.49748179,164.98,164.97,26.14]
[1752462552192,5.49748179,164.98,164.97,57.44]
[1752462552396,0.74,164.98,164.97,57.44]
[1752462553892,0.06,164.98,164.97,57.44]
[1752462554108,0.74,164.98,164.97,57.44]
[1752462555401,0.06,164.98,164.97,57.44]
[1752462555894,0.74,164.98,164.97,57.44]
[1752462556520,0.06,164.98,164.97,57.44]
[1752462557208,0.74,164.98,164.97,57.44]
[1752462559708,0.06,164.98,164.97,57.44]
[1752462561618,0.06,164.98,164.97,62.19748179]
[1752462561809,0.06,164.98,164.97,57.44]
[1752462562519,0.74,164.98,164.97,26.14]
[1752462562700,5.49748179,164.98,164.97,57.36]
[1752462565298,0.74,164.98,164.97,57.36]
[1752462567303,0.06,164.98,164.97,57.36]
[1752462570347,0.74,164.98,164.97,57.36]
[1752462570642,5.49748179,164.98,164.97,57.36]
[1752462572312,0.74,164.98,164.97,57.36]
[1752462572512,0.06,164.98,164.97,57.36]
[1752462572753,0.73,164.98,164.97,57.36]
[1752462573231,0.06,164.98,164.97,57.36]
[1752462573445,0.73,164.98,164.97,57.36]
[1752462575412,0.73,164.98,164.97,26.14]
[1752462576551,0.73,164.98,164.97,57.32]
[1752462578038,0.06,164.98,164.97,57.32]
[1752462578333,5.48748179,164.98,164.97,57.32]
[1752462578516,0.73,164.98,164.97,57.32]
[1752462578717,5.48748179,164.98,164.97,57.32]
[1752462581141,5.48748179,164.98,164.95,26.14]
[1752462581722,0.67,164.97,164.95,26.14]
[1752462582343,0.67,164.97,164.96,31.14]
[1752462582645,5.42748179,164.97,164.96,31.14]
[1752462582845,5.42748179,164.97,164.95,26.14]
[1752462583031,5.42748179,164.96,164.95,26.14]
[1752462583235,5.42748179,164.96,164.95,57.28]
[1752462588229,5.42748179,164.97,164.95,57.28]
[1752462588431,5.42748179,164.96,164.95,57.28]
[1752462588757,4.75748179,164.96,164.95,57.28]
[1752462589553,0.06,164.98,164.95,62.03748179]
[1752462589738,0.73,164.98,164.95,57.28]
[1752462590523,0.06,164.98,164.95,57.28]
[1752462590732,0.06,164.98,164.96,4.75748179]
[1752462590954,0.06,164.98,164.97,31.1]
[1752462593345,5.48748179,164.98,164.95,26.14]
[1752462593530,0.67,164.97,164.96,31.1]
[1752462594046,4.75748179,164.97,164.96,26.14]
[1752462594551,5.48748179,164.98,164.96,26.14]
[1752462594745,4.81748179,164.98,164.96,26.14]
[1752462595340,4.81748179,164.98,164.97,31.08]
[1752462595840,0.06,164.98,164.97,31.08]
[1752462598859,0.06,164.98,164.97,35.90748179]
[1752462600538,0.06,164.98,164.97,141.79216576]
[1752462601055,0.06,164.98,164.97,148.09786576]
[1752462601433,0.06,164.98,164.97,154.14286576]
[1752462602854,0.06,164.98,164.97,180.14286576]
[1752462603045,0.06,164.98,164.97,174.09786576]
[1752462603243,0.06,164.98,164.97,131.95468397]
[1752462603557,0.06,164.98,164.97,150.89748179]
[1752462603953,0.06,164.98,164.97,150.96748179]
[1752462604453,0.06,164.98,164.97,167.75216576]
[1752462605139,0.06,164.98,164.97,173.79716576]
[1752462605545,0.06,164.98,164.97,176.79904891]
[1752462605953,0.06,164.98,164.97,170.75404891]
[1752462606148,0.06,164.98,164.97,165.99656712]
[1752462606354,0.06,164.98,164.97,176.79904891]
[1752462606550,0.06,165.05,164.98,34.93468397]
[1752462606750,0.06,165.05,165.04,4.75748179]
[1752462606950,0.06,165.05,165.04,35.79748179]
[1752462610661,0.06,165.05,165.04,35.86748179]
[1752462611053,0.06,165.05,165.04,35.79748179]
[1752462612844,0.06,165.05,165.04,31.04]
[1752462613746,0.06,165.05,165.04,35.79748179]
[1752462614852,0.06,165.05,165.04,35.86748179]
[1752462615056,0.06,165.05,165.04,146.50964755]
[1752462615280,1.5823,165.12,165.05,16.78468397]
[1752462615576,0.69,165.14,165.11,4.75748179]
[1752462615767,0.69,165.14,165.12,35.77748179]
[1752462615970,0.69,165.14,165.13,31.02]
[1752462618066,0.69,165.14,165.13,57.14]
[1752462618274,0.06,165.15,165.13,57.14]
[1752462618478,0.75,165.15,165.13,57.14]
[1752462618866,0.06,165.15,165.13,57.14]
[1752462619050,0.69,165.14,165.13,57.14]
[1752462619952,0.06,165.15,165.13,61.89748179]
[1752462620158,0.06,165.15,165.13,57.14]
[1752462620375,5.44748179,165.14,165.13,26.12]
[1752462620674,5.44748179,165.14,165.13,57.12]
[1752462621778,5.44748179,165.14,165.13,26.12]
[1752462622082,16.29446358,165.14,165.09,26.12]
[1752462622271,4.75748179,165.1,165.09,26.12]
[1752462622474,5.44748179,165.1,165.09,26.12]
[1752462623386,5.44748179,165.12,165.09,57.14]
[1752462623681,5.44748179,165.11,165.09,57.14]
[1752462623979,4.75748179,165.11,165.09,57.14]
[1752462624270,0.69,165.11,165.09,57.14]
[1752462624475,5.44748179,165.13,165.09,57.14]
[1752462624874,4.75748179,165.13,165.09,57.14]
[1752462625063,0.69,165.12,165.09,57.14]
[1752462625579,4.75748179,165.12,165.09,57.14]
[1752462625873,0.69,165.11,165.09,57.14]
[1752462627368,5.44748179,165.1,165.09,26.12]
[1752462627573,5.44748179,165.1,165.09,57.16]
[1752462628781,0.69,165.1,165.09,57.16]
[1752462629765,5.44748179,165.1,165.09,57.16]
[1752462630000,0.69,165.1,165.09,57.16]
[1752462630663,5.44748179,165.1,165.09,57.16]
[1752462633772,4.75748179,165.11,165.09,57.16]
[1752462633965,5.44748179,165.12,165.09,57.16]
[1752462634981,0.69,165.12,165.09,57.16]
[1752462635170,6.8395,165.14,165.09,57.16]
[1752462635490,0.69,165.13,165.1,4.75748179]
[1752462635674,0.69,165.13,165.11,31.06]
[1752462636666,0.06,165.14,165.12,4.75748179]
[1752462636866,0.06,165.14,165.13,35.83748179]
[1752462637294,0.06,165.14,165.13,31.08]
[1752462642789,0.75,165.14,165.13,31.08]
[1752462643987,0.06,165.14,165.13,31.08]
[1752462645890,0.06,165.14,165.13,35.83748179]
[1752462646202,0.06,165.14,165.13,124.93748179]
[1752462647577,0.06,165.14,165.13,120.18]
[1752462647778,0.06,165.14,165.13,124.93748179]
[1752462648582,0.06,165.14,165.13,120.18]
[1752462649302,0.06,165.14,165.13,31.08]
[1752462650303,0.06,165.14,165.13,35.83748179]
[1752462650799,0.06,165.14,165.13,31.08]
[1752462652886,0.06,165.14,165.13,35.83748179]
[1752462653094,0.06,165.14,165.13,31.08]
[1752462655210,0.06,165.14,165.13,125.43748179]
[1752462655711,0.06,165.14,165.13,120.68]
[1752462656012,0.06,165.14,165.13,125.43748179]
[1752462656608,0.06,165.14,165.13,120.68]
[1752462656809,0.06,165.14,165.13,142.22216576]
[1752462662202,0.06,165.14,165.13,137.46468397]
[1752462662408,0.06,165.14,165.13,142.22216576]
[1752462662618,0.06,165.14,165.13,125.43748179]
[1752462662804,0.78,165.14,165.13,125.43748179]
[1752462663005,0.78,165.14,165.13,89.6]
[1752462663208,0.78,165.14,165.13,120.58]
[1752462667015,0.78,165.14,165.13,30.98]
[1752462667922,0.06,165.14,165.13,30.98]
[1752462668108,0.06,165.14,165.13,57.08]
[1752462668299,0.06,165.14,165.13,61.83748179]
[1752462668829,0.06,165.14,165.13,57.08]
[1752462669219,0.06,165.14,165.13,61.83748179]
[1752462669419,0.06,165.14,165.13,78.62216576]
[1752462672925,0.06,165.14,165.13,168.22216576]
[1752462675317,0.06,165.14,165.13,163.46468397]
[1752462675516,0.06,165.14,165.13,168.22216576]
[1752462676231,0.02972174,165.14,165.13,151.43748179]
[1752462676546,0.74972174,165.14,165.13,146.68]
[1752462678455,5.50720353,165.14,165.13,146.68]
[1752462678739,5.50720353,165.14,165.13,57.08]
[1752462678937,13.33520353,165.14,165.13,57.08]
[1752462679518,8.57772174,165.14,165.13,57.08]
[1752462679716,13.33520353,165.14,165.13,57.08]
[1752462680915,13.33520353,165.14,165.08,115.7]
[1752462681115,4.75748179,165.1,165.09,30.98]
[1752462681316,5.47748179,165.1,165.09,30.98]
[1752462681540,0.72,165.1,165.09,30.98]
[1752462681710,5.47748179,165.1,165.09,30.98]
[1752462683017,0.72,165.12,165.09,35.73748179]
[1752462683237,0.72,165.12,165.09,30.98]
[1752462683415,0.72,165.11,165.1,30.98]
[1752462683618,5.47748179,165.11,165.08,26.1]
[1752462683836,0.72,165.1,165.09,30.98]
[1752462684042,5.47748179,165.1,165.09,30.98]
[1752462684739,0.72,165.1,165.09,30.98]
[1752462685060,0.72,165.12,165.09,30.98]
[1752462685371,0.72,165.11,165.09,30.98]
[1752462685934,0.72,165.13,165.09,35.73748179]
[1752462686217,2.35082174,165.14,165.11,4.75748179]
[1752462686417,0.72,165.13,165.12,30.98]
[1752462688751,6.38830353,165.14,165.12,30.98]
[1752462688921,2.35082174,165.14,165.12,30.98]
[1752462689328,2.35082174,165.14,165.13,26.1]
[1752462690042,0.74972174,165.14,165.13,26.1]
[1752462693061,5.50720353,165.14,165.13,26.1]
[1752462693940,0.74972174,165.14,165.13,26.1]
[1752462694141,5.50720353,165.14,165.13,26.1]
[1752462694739,0.74972174,165.14,165.13,26.1]
[1752462697168,0.02972174,165.14,165.13,26.1]
[1752462698067,0.70972174,165.14,165.13,26.1]
[1752462698574,0.02972174,165.14,165.13,26.1]
[1752462699362,0.02972174,165.14,165.13,120.45748179]
[1752462700445,0.02972174,165.14,165.13,137.24216576]
[1752462706562,0.02972174,165.14,165.13,181.38216576]
[1752462707066,0.06,165.15,165.13,181.38216576]
[1752462707067,0.06,165.15,165.14,89.57027826]
[1752462707361,0.06,165.15,165.14,151.28776005]
[1752462707568,0.06,165.15,165.14,186.21244402]
[1752462708151,0.06,165.21,165.15,34.92468397]
[1752462708352,0.06,165.21,165.2,4.75748179]
[1752462708651,0.06,165.21,165.2,142.07244402]
[1752462708867,0.06,165.21,165.2,146.82992581]
[1752462709051,0.06,165.21,165.2,142.07244402]
[1752462712070,0.06,165.21,165.2,145.14477237]
[1752462714448,0.06,165.21,165.2,142.07244402]
[1752462714651,0.06,165.21,165.2,172.82992581]
[1752462715166,0.06,165.21,165.2,168.07244402]
[1752462715667,0.06,165.21,165.2,171.156477]
[1752462716573,0.06,165.21,165.2,168.07244402]
[1752462720579,0.06,165.21,165.2,171.14711959]
[1752462720874,0.06,165.21,165.2,175.90460138]
[1752462721173,0.06,165.21,165.2,171.14711959]
[1752462730176,0.06,165.21,165.2,166.3896378]
[1752462730406,0.06,165.21,165.2,171.14711959]
[1752462736385,0.06,165.21,165.2,115.57027826]
[1752462736588,0.06,165.21,165.2,142.05244402]
[1752462740781,0.06,165.21,165.2,137.29496223]
[1752462740980,0.73,165.21,165.2,120.51027826]
[1752462742097,0.73,165.21,165.2,125.26776005]
[1752462742388,0.73,165.21,165.2,120.51027826]
[1752462742589,0.73,165.21,165.2,125.26776005]
[1752462743893,0.73,165.21,165.2,151.34776005]
[1752462744271,0.06,165.21,165.2,168.13244402]
[1752462747287,6.5645,165.29,165.2,168.13244402]
[1752462747288,0.67,165.32,165.26,16.78468397]
[1752462747485,0.67,165.35,165.31,4.75748179]
[1752462747681,0.67,165.38,165.34,4.75748179]
[1752462748005,0.67,165.38,165.36,4.75748179]
[1752462748189,0.67,165.38,165.35,30.94]
[1752462748190,0.67,165.38,165.37,30.94]
[1752462748904,0.67,165.41,165.37,30.94]
[1752462749108,12.98718179,165.44,165.39,4.75748179]
[1752462749274,4.75748179,165.47,165.4,30.94]
[1752462749477,4.75748179,165.45,165.4,30.94]
[1752462749784,0.67,165.44,165.41,21.54216576]
[1752462750098,5.42748179,165.44,165.42,31.1]
[1752462750400,0.67,165.43,165.42,31.1]
[1752462750975,5.42748179,165.43,165.42,31.1]
[1752462751175,0.67,165.43,165.42,31.1]
[1752462751389,5.42748179,165.43,165.42,31.1]
[1752462753474,0.71,165.45,165.42,35.85748179]
[1752462753797,0.71,165.44,165.42,35.85748179]
[1752462753997,4.75748179,165.47,165.42,35.85748179]
[1752462754201,0.71,165.43,165.42,35.85748179]
[1752462754984,0.71,165.43,165.42,36.35748179]
[1752462755294,4.75748179,165.47,165.42,36.35748179]
[1752462755295,0.71,165.45,165.42,36.35748179]
[1752462755483,0.71,165.44,165.42,31.6]
[1752462756503,5.46748179,165.44,165.42,31.6]
[1752462756681,0.71,165.43,165.42,31.6]
[1752462758581,5.46748179,165.43,165.42,31.08]
[1752462759289,6.5701,165.48,165.42,31.08]
[1752462759606,4.75748179,165.45,165.42,31.08]
[1752462759809,6.5701,165.48,165.42,31.08]
[1752462759810,0.71,165.44,165.42,31.08]
[1752462761295,0.71,165.46,165.42,35.83748179]
[1752462761600,0.71,165.46,165.42,31.08]
[1752462761804,0.71,165.46,165.43,4.75748179]
[1752462761989,0.71,165.45,165.44,31.06]
[1752462763100,5.46748179,165.47,165.44,31.06]
[1752462763303,0.71,165.46,165.44,31.06]
[1752462764233,6.5701,165.48,165.44,31.06]
[1752462764234,0.71,165.48,165.44,125.41748179]
[1752462764437,0.71,165.48,165.45,4.75748179]
[1752462764613,0.71,165.48,165.46,31.06]
[1752462765316,0.71,165.47,165.46,31.06]
[1752462766114,0.71,165.49,165.46,31.06]
[1752462766309,0.71,165.49,165.46,35.81748179]
[1752462766547,0.71,165.48,165.46,31.06]
[1752462766720,0.71,165.47,165.46,31.06]
[1752462767121,5.46748179,165.49,165.46,31.06]
[1752462767350,0.71,165.48,165.46,31.06]
[1752462768544,4.75748179,165.49,165.46,31.06]
[1752462768732,5.46748179,165.49,165.46,31.06]
[1752462768929,11.08285106,165.5,165.46,35.81748179]
[1752462769120,16.55033285,165.5,165.46,35.81748179]
[1752462769456,0.71,165.49,165.46,35.81748179]
[1752462769624,15.84033285,165.5,165.46,35.81748179]
[1752462769816,11.79285106,165.5,165.46,35.81748179]
[1752462770453,11.79285106,165.5,165.46,125.41748179]
[1752462771237,11.79285106,165.5,165.46,35.81748179]
[1752462771435,10.29285106,165.5,165.46,35.81748179]
[1752462772026,15.05033285,165.5,165.46,35.81748179]
[1752462772556,10.29285106,165.5,165.46,35.81748179]
[1752462772854,15.05033285,165.5,165.46,35.81748179]
[1752462773416,14.34033285,165.5,165.46,35.81748179]
[1752462773723,5.46748179,165.49,165.46,31.06]
[1752462773930,0.71,165.48,165.46,31.06]
[1752462774153,0.71,165.47,165.46,31.06]
[1752462774451,0.71,165.48,165.46,31.06]
[1752462775250,14.34033285,165.5,165.46,35.81748179]
[1752462775428,10.29285106,165.5,165.46,31.57]
[1752462775745,10.29285106,165.5,165.46,36.32748179]
[1752462775746,9.58285106,165.5,165.46,36.32748179]
[1752462775935,9.58285106,165.5,165.46,31.57]
[1752462776134,9.58285106,165.5,165.46,36.32748179]
[1752462776456,9.58285106,165.5,165.47,5.26748179]
[1752462776619,9.58285106,165.5,165.48,31.0]
[1752462777243,9.64285106,165.5,165.48,31.0]
[1752462777544,0.71,165.49,165.48,31.0]
[1752462777748,9.64285106,165.5,165.48,31.0]
[1752462777933,9.64285106,165.5,165.48,35.75748179]
[1752462778133,9.64285106,165.5,165.48,31.0]
[1752462779232,9.64285106,165.5,165.48,31.51]
[1752462779450,9.64285106,165.5,165.48,35.75748179]
[1752462779749,10.35285106,165.5,165.48,31.0]
[1752462779925,9.64285106,165.5,165.48,35.75748179]
[1752462780123,9.64285106,165.5,165.49,22.05216576]
[1752462780441,9.64285106,165.5,165.48,31.0]
[1752462780630,9.64285106,165.5,165.48,35.75748179]
[1752462780847,9.64285106,165.5,165.48,31.0]
[1752462781749,9.64285106,165.5,165.48,36.26748179]
[1752462782052,9.64285106,165.5,165.48,35.75748179]
[1752462782645,9.64285106,165.5,165.48,36.26748179]
[1752462783442,9.64285106,165.5,165.49,0.51]
[1752462783654,9.64285106,165.5,165.49,4.75748179]
[1752462783945,9.64285106,165.5,165.48,35.75748179]
[1752462784151,0.69,165.49,165.48,31.0]
[1752462784352,9.64285106,165.5,165.48,31.0]
[1752462784733,9.64285106,165.5,165.48,35.75748179]
[1752462785330,9.64285106,165.5,165.48,125.35748179]
[1752462785950,9.64285106,165.5,165.49,5.26748179]
[1752462786335,9.64285106,165.5,165.49,4.75748179]
[1752462786550,9.64285106,165.5,165.48,120.6]
[1752462786729,9.64285106,165.5,165.49,4.75748179]
[1752462787242,9.64285106,165.5,165.49,22.05216576]
[1752462787951,9.64285106,165.5,165.49,21.54216576]
[1752462788453,9.64285106,165.5,165.49,16.78468397]
[1752462788654,9.64285106,165.5,165.49,21.54216576]
[1752462789733,9.14285106,165.5,165.49,21.54216576]
[1752462790261,9.14285106,165.5,165.49,22.05216576]
[1752462790757,9.14285106,165.5,165.49,21.54216576]
[1752462791260,9.14285106,165.5,165.49,111.65216576]
[1752462792130,9.14285106,165.5,165.49,117.69516576]
[1752462792453,9.14285106,165.5,165.49,117.18516576]
[1752462794156,9.83285106,165.5,165.49,95.643]
[1752462794356,9.83285106,165.5,165.49,120.58]
[1752462794657,14.59033285,165.5,165.49,146.62]
[1752462794862,9.83285106,165.5,165.49,146.62]
[1752462795247,9.83285106,165.5,165.49,146.6]
[1752462796051,9.14285106,165.5,165.49,146.6]
[1752462796458,9.83285106,165.5,165.49,146.6]
[1752462797059,9.14285106,165.5,165.49,146.6]
[1752462798254,9.14285106,165.5,165.49,168.65216576]
[1752462799065,9.14285106,165.5,165.49,174.69516576]
[1752462799458,9.14285106,165.5,165.49,174.18516576]
[1752462799657,9.83285106,165.5,165.49,152.643]
[1752462799846,14.59033285,165.5,165.49,146.62]
[1752462800461,14.59033285,165.5,165.49,146.65]
[1752462802551,9.14285106,165.5,165.49,146.65]
[1752462802875,9.83285106,165.5,165.49,146.65]
[1752462803188,9.83285106,165.5,165.49,57.05]
[1752462804350,9.14285106,165.5,165.49,57.05]
[1752462805365,9.14285106,165.5,165.49,62.31748179]
[1752462805761,9.83285106,165.5,165.49,57.03]
[1752462806657,14.59033285,165.5,165.49,57.03]
[1752462807672,9.14285106,165.5,165.49,57.03]
[1752462808044,14.59033285,165.5,165.49,57.03]
[1752462810355,9.83285106,165.5,165.49,57.03]
[1752462810556,16.19923285,165.5,165.49,57.03]
[1752462811957,16.19923285,165.5,165.49,26.07]
[1752462812159,16.19923285,165.5,165.49,57.01]
[1752462812955,11.44175106,165.5,165.49,57.01]
[1752462813278,16.19923285,165.5,165.49,57.01]
[1752462813469,11.47175106,165.5,165.49,57.01]
[1752462813672,17.98665106,165.5,165.49,26.07]
[1752462813972,22.74413285,165.5,165.49,57.09]
[1752462814167,17.98665106,165.5,165.49,57.09]
[1752462814374,22.74413285,165.5,165.49,57.09]
[1752462824867,17.98665106,165.5,165.49,57.09]
[1752462825178,22.74413285,165.5,165.49,57.09]
[1752462840777,11.47175106,165.5,165.49,57.09]
[1752462840966,16.22923285,165.5,165.49,57.09]
[1752462841296,9.14285106,165.5,165.49,57.6]
[1752462841866,9.14285106,165.5,165.49,57.09]
[1752462843026,14.61033285,165.5,165.49,56.99]
[1752462844691,9.14285106,165.5,165.49,56.99]
[1752462845198,13.90033285,165.5,165.49,56.99]
[1752462846489,9.14285106,165.5,165.49,56.99]
[1752462846701,13.90033285,165.5,165.49,56.99]
[1752462847192,14.61033285,165.5,165.49,56.99]
[1752462847885,9.14285106,165.5,165.49,56.99]
[1752462848376,13.90033285,165.5,165.49,56.99]
[1752462849081,9.14285106,165.5,165.49,56.99]
[1752462849499,9.14285106,165.5,165.49,57.5]
[1752462850374,9.14285106,165.5,165.49,62.25748179]
[1752462852910,9.14285106,165.5,165.49,56.99]
[1752462853411,9.14285106,165.5,165.49,146.59]
[1752462853775,9.14285106,165.5,165.49,151.85748179]
[1752462855811,9.14285106,165.5,165.49,62.25748179]
[1752462855986,9.14285106,165.5,165.49,66.4525819]
[1752462856188,9.14285106,165.5,165.49,71.21006369]
[1752462858187,9.14285106,165.5,165.49,77.25306369]
[1752462858807,9.14285106,165.5,165.49,71.21006369]
[1752462859185,9.14285106,165.5,165.49,72.4955819]
[1752462859507,9.14285106,165.5,165.49,71.21006369]
[1752462859709,9.14285106,165.5,165.49,70.70006369]
[1752462860604,9.14285106,165.5,165.49,61.74748179]
[1752462861005,9.14285106,165.5,165.49,56.99]
[1752462862120,14.61033285,165.5,165.49,56.97]
[1752462863213,16.21103285,165.5,165.49,56.97]
[1752462866316,11.45355106,165.5,165.49,56.97]
[1752462866517,16.21103285,165.5,165.49,56.97]
[1752462867409,16.21103285,165.5,165.43,26.04]
[1752462867617,4.75748179,165.44,165.43,26.04]
[1752462867796,5.46748179,165.44,165.43,26.04]
[1752462868109,11.84996358,165.44,165.43,26.04]
[1752462868297,6.296,165.43,165.42,0.03]
[1752462868612,11.76348179,165.43,165.42,30.95]
[1752462871599,11.76348179,165.43,165.39,26.04]
[1752462871799,4.75748179,165.4,165.39,26.04]
[1752462872014,5.47748179,165.4,165.39,26.04]
[1752462872313,0.72,165.42,165.39,26.04]
[1752462872520,5.47748179,165.42,165.39,26.04]
[1752462872708,0.72,165.41,165.4,30.94]
[1752462872913,5.47748179,165.41,165.4,30.94]
[1752462873330,0.72,165.41,165.4,30.94]
[1752462873508,7.016,165.43,165.4,30.94]
[1752462873703,4.75748179,165.41,165.4,30.94]
[1752462874505,5.47748179,165.42,165.4,30.94]
[1752462874907,1.625,165.44,165.4,30.94]
[1752462875117,5.47748179,165.43,165.4,30.94]
[1752462876119,4.75748179,165.43,165.4,30.94]
[1752462876430,0.72,165.45,165.41,5.26748179]